[Event "Late-Titled-Tuesday-Blitz-November-28-2023"]
[Site "Chess.com"]
[Date "2023.11.28"]
[Round "6"]
[White "giomar27"]
[Black "DraningWaterHi"]
[Result "1-0"]
[WhiteElo "2426"]
[BlackElo "2174"]
[TimeControl "180+1"]
[EndTime "15:04:33 PST"]
[Termination "giomar27 won by resignation"]

1. e4 {[%clk 0:03:00.9]} 1... e5 {[%clk 0:02:55]} 2. Nf3 {[%clk 0:03:00.7]} 2...
Nc6 {[%clk 0:02:53.7]} 3. Bc4 {[%clk 0:03:01.3]} 3... Nf6 {[%clk 0:02:53.3]} 4.
Qe2 {[%clk 0:03:01.1]} 4... Bc5 {[%clk 0:02:50.7]} 5. Ng5 {[%clk 0:03:01.1]}
5... O-O {[%clk 0:02:50.1]} 6. Nxf7 {[%clk 0:03:01]} 6... Rxf7 {[%clk
0:02:39.9]} 7. Bxf7+ {[%clk 0:03:01.9]} 7... Kxf7 {[%clk 0:02:40.3]} 8. Qc4+
{[%clk 0:03:02.1]} 8... d5 {[%clk 0:02:39.5]} 9. Qxc5 {[%clk 0:03:00.5]} 9...
Nd4 {[%clk 0:02:39.6]} 10. exd5 {[%clk 0:02:45]} 10... Ne4 {[%clk 0:02:36.3]}
11. Qc4 {[%clk 0:02:42.7]} 11... b5 {[%clk 0:02:36.2]} 12. Qd3 {[%clk
0:02:35.6]} 12... Bf5 {[%clk 0:02:36]} 13. Na3 {[%clk 0:01:53.1]} 13... Nxf2
{[%clk 0:02:23.2]} 14. Qf1 {[%clk 0:01:42]} 14... Nxh1 {[%clk 0:02:19.6]} 15. c3
{[%clk 0:01:42.5]} 15... Qh4+ {[%clk 0:02:07.7]} 16. Kd1 {[%clk 0:01:36]} 16...
Qg4+ {[%clk 0:02:07]} 17. Ke1 {[%clk 0:01:33]} 17... Qe4+ {[%clk 0:02:07]} 18.
Kd1 {[%clk 0:01:31.9]} 18... Kg8 {[%clk 0:02:04.5]} 19. d3 {[%clk 0:01:28.8]}
19... Bg4+ {[%clk 0:01:44]} 20. Kd2 {[%clk 0:01:27]} 20... Qe2+ {[%clk
0:01:23.2]} 21. Qxe2 {[%clk 0:01:26.2]} 21... Nxe2 {[%clk 0:01:24.1]} 22. h3
{[%clk 0:01:19.8]} 22... Nxc1 {[%clk 0:00:50.1]} 23. Rxc1 {[%clk 0:01:18.8]}
23... Nf2 {[%clk 0:00:42.1]} 24. hxg4 {[%clk 0:01:17.8]} 24... Nxg4 {[%clk
0:00:43]} 25. Nxb5 {[%clk 0:01:16.8]} 25... Rb8 {[%clk 0:00:42.3]} 26. c4 {[%clk
0:01:12.2]} 26... a6 {[%clk 0:00:41.7]} 27. Nxc7 {[%clk 0:01:12.1]} 27... Rxb2+
{[%clk 0:00:41.5]} 28. Rc2 {[%clk 0:01:12.5]} 28... Rxc2+ {[%clk 0:00:41.4]} 29.
Kxc2 {[%clk 0:01:12.4]} 29... Ne3+ {[%clk 0:00:42.3]} 30. Kc3 {[%clk 0:01:12]}
30... Nxg2 {[%clk 0:00:43.2]} 31. Ne6 {[%clk 0:01:05.5]} 31... h5 {[%clk
0:00:43.1]} 32. d6 {[%clk 0:01:04.6]} 32... Kf7 {[%clk 0:00:27.6]} 33. d7 {[%clk
0:01:04.6]} 33... Kxe6 {[%clk 0:00:28.5]} 34. d8=Q {[%clk 0:01:04.7]} 34... h4
{[%clk 0:00:29.4]} 35. Qe8+ {[%clk 0:01:02.4]} 35... Kf5 {[%clk 0:00:29.5]} 36.
Qf7+ {[%clk 0:01:01.8]} 36... Kg4 {[%clk 0:00:27]} 37. Qxg7+ {[%clk 0:01:01.9]}
37... Kf3 {[%clk 0:00:27.6]} 38. Qxe5 {[%clk 0:00:58.9]} 38... h3 {[%clk
0:00:27.5]} 39. Qe4+ {[%clk 0:00:51.1]} 39... Kf2 {[%clk 0:00:27.3]} 40. Qf5+
{[%clk 0:00:50.2]} 40... Kg3 {[%clk 0:00:27.5]} 41. Qg5+ {[%clk 0:00:47.6]}
41... Kf2 {[%clk 0:00:27.8]} 42. Qh6 {[%clk 0:00:41.1]} 42... Kg3 {[%clk
0:00:23.9]} 43. c5 {[%clk 0:00:37.2]} 43... h2 {[%clk 0:00:23.9]} 44. Qxh2+
{[%clk 0:00:32.1]} 44... Kxh2 {[%clk 0:00:24.8]} 45. c6 {[%clk 0:00:32.8]} 45...
Nf4 {[%clk 0:00:25.1]} 46. Kc4 {[%clk 0:00:29.2]} 46... Ne6 {[%clk 0:00:25.6]}
47. d4 {[%clk 0:00:28.1]} 47... Nd8 {[%clk 0:00:19.4]} 1-0

[Event "Late-Titled-Tuesday-Blitz-November-28-2023"]
[Site "Chess.com"]
[Date "2023.11.28"]
[Round "6"]
[White "lluiss"]
[Black "KNVB"]
[Result "0-1"]
[WhiteElo "2206"]
[BlackElo "2666"]
[TimeControl "180+1"]
[EndTime "15:04:41 PST"]
[Termination "KNVB won on time"]

1. Nf3 {[%clk 0:03:00.9]} 1... d5 {[%clk 0:02:59.7]} 2. d4 {[%clk 0:02:59.9]}
2... c6 {[%clk 0:03:00.6]} 3. c4 {[%clk 0:02:59]} 3... Nf6 {[%clk 0:03:01.5]} 4.
cxd5 {[%clk 0:02:59]} 4... cxd5 {[%clk 0:03:01.8]} 5. Nc3 {[%clk 0:02:59.5]}
5... Nc6 {[%clk 0:03:02.3]} 6. Bf4 {[%clk 0:02:59.8]} 6... Ne4 {[%clk
0:02:56.7]} 7. e3 {[%clk 0:02:54.6]} 7... e6 {[%clk 0:02:15.1]} 8. Bd3 {[%clk
0:02:49.7]} 8... Nxc3 {[%clk 0:02:12.8]} 9. bxc3 {[%clk 0:02:49.1]} 9... Bd6
{[%clk 0:02:13.7]} 10. Bxd6 {[%clk 0:02:48.3]} 10... Qxd6 {[%clk 0:02:14.6]} 11.
O-O {[%clk 0:02:46.1]} 11... O-O {[%clk 0:02:09.4]} 12. c4 {[%clk 0:02:45.7]}
12... dxc4 {[%clk 0:02:09.4]} 13. Bxc4 {[%clk 0:02:45.7]} 13... b6 {[%clk
0:02:08.8]} 14. e4 {[%clk 0:02:15.1]} 14... Bb7 {[%clk 0:02:04.2]} 15. Re1
{[%clk 0:01:38.5]} 15... Rfd8 {[%clk 0:01:26.3]} 16. e5 {[%clk 0:01:20]} 16...
Qd7 {[%clk 0:01:06.8]} 17. Bd3 {[%clk 0:01:19.6]} 17... h6 {[%clk 0:00:16.5]}
18. Be4 {[%clk 0:00:48]} 18... Ne7 {[%clk 0:00:16.8]} 19. Bxb7 {[%clk
0:00:45.9]} 19... Qxb7 {[%clk 0:00:17.7]} 20. Qb3 {[%clk 0:00:39.6]} 20... Rd7
{[%clk 0:00:17.4]} 21. a4 {[%clk 0:00:34.3]} 21... Nc6 {[%clk 0:00:17.2]} 22.
Rad1 {[%clk 0:00:16.4]} 22... Rad8 {[%clk 0:00:17.7]} 23. Qc4 {[%clk 0:00:15.3]}
23... Rd5 {[%clk 0:00:17.4]} 24. Rd2 {[%clk 0:00:09.2]} 24... Qd7 {[%clk
0:00:15.2]} 25. Red1 {[%clk 0:00:09.2]} 25... Na5 {[%clk 0:00:11.1]} 26. Qb4
{[%clk 0:00:07.6]} 26... Nc6 {[%clk 0:00:11.5]} 27. Qc4 {[%clk 0:00:07.9]} 27...
Ne7 {[%clk 0:00:11.5]} 28. h3 {[%clk 0:00:06.1]} 28... Nf5 {[%clk 0:00:08.9]}
29. g4 {[%clk 0:00:04.7]} 29... Ne7 {[%clk 0:00:09.2]} 30. Kg2 {[%clk
0:00:04.4]} 30... Ra5 {[%clk 0:00:05.7]} 31. Ra2 {[%clk 0:00:02.9]} 31... Nd5
{[%clk 0:00:03.7]} 32. Kg3 {[%clk 0:00:02.2]} 32... b5 {[%clk 0:00:02.9]} 0-1

[Event "Late-Titled-Tuesday-Blitz-November-28-2023"]
[Site "Chess.com"]
[Date "2023.11.28"]
[Round "6"]
[White "Felix-Rose"]
[Black "oogee"]
[Result "0-1"]
[WhiteElo "2325"]
[BlackElo "2327"]
[TimeControl "180+1"]
[EndTime "15:04:44 PST"]
[Termination "oogee won by resignation"]

1. e4 {[%clk 0:02:59.8]} 1... c5 {[%clk 0:02:44.1]} 2. Nf3 {[%clk 0:02:59.9]}
2... a6 {[%clk 0:02:42.9]} 3. Nc3 {[%clk 0:02:59.6]} 3... Nc6 {[%clk 0:02:40.2]}
4. d4 {[%clk 0:02:59.9]} 4... cxd4 {[%clk 0:02:38.7]} 5. Nxd4 {[%clk 0:03:00.8]}
5... e5 {[%clk 0:02:39]} 6. Nxc6 {[%clk 0:02:52.4]} 6... bxc6 {[%clk 0:02:37.6]}
7. Bd3 {[%clk 0:02:47.7]} 7... Nf6 {[%clk 0:02:33.6]} 8. O-O {[%clk 0:02:47]}
8... Bc5 {[%clk 0:02:32.3]} 9. Na4 {[%clk 0:02:41]} 9... Ba7 {[%clk 0:02:31.3]}
10. c4 {[%clk 0:02:41.1]} 10... O-O {[%clk 0:02:27.5]} 11. Nc3 {[%clk 0:02:41]}
11... d5 {[%clk 0:02:26.1]} 12. cxd5 {[%clk 0:02:39.2]} 12... cxd5 {[%clk
0:02:25.5]} 13. Nxd5 {[%clk 0:02:36.6]} 13... Nxd5 {[%clk 0:02:25]} 14. exd5
{[%clk 0:02:37.5]} 14... f5 {[%clk 0:02:24.4]} 15. d6 {[%clk 0:02:31.4]} 15...
Be6 {[%clk 0:02:23]} 16. Bxa6 {[%clk 0:02:16.4]} 16... Bd4 {[%clk 0:02:18.9]}
17. Bb7 {[%clk 0:01:55.7]} 17... Ra5 {[%clk 0:02:09.3]} 18. Be3 {[%clk
0:01:41.9]} 18... Qxd6 {[%clk 0:02:07.2]} 19. Bxd4 {[%clk 0:01:40.6]} 19... exd4
{[%clk 0:02:06.6]} 20. Re1 {[%clk 0:01:38.6]} 20... Rb8 {[%clk 0:02:01.9]} 21.
Qf3 {[%clk 0:01:35.9]} 21... Bf7 {[%clk 0:01:50.9]} 22. a3 {[%clk 0:01:17.1]}
22... Rb5 {[%clk 0:01:45.6]} 23. Qc6 {[%clk 0:00:44]} 23... Qxc6 {[%clk
0:01:35.6]} 24. Bxc6 {[%clk 0:00:43.8]} 24... Rxb2 {[%clk 0:01:27.9]} 25. Red1
{[%clk 0:00:39.4]} 25... Rd8 {[%clk 0:01:10.3]} 26. a4 {[%clk 0:00:36.3]} 26...
Bc4 {[%clk 0:01:03.9]} 27. Rdb1 {[%clk 0:00:18.5]} 27... Rc2 {[%clk 0:00:55.9]}
28. Rc1 {[%clk 0:00:17]} 28... d3 {[%clk 0:00:55]} 29. Bb5 {[%clk 0:00:15.4]}
29... Rxc1+ {[%clk 0:00:51.7]} 30. Rxc1 {[%clk 0:00:15.3]} 30... Bb3 {[%clk
0:00:48.4]} 31. Bxd3 {[%clk 0:00:04.5]} 31... Rxd3 {[%clk 0:00:46.2]} 32. a5
{[%clk 0:00:05.4]} 32... Rd1+ {[%clk 0:00:36.7]} 33. Rxd1 {[%clk 0:00:05.9]}
33... Bxd1 {[%clk 0:00:36.5]} 34. a6 {[%clk 0:00:06.8]} 34... Ba4 {[%clk
0:00:32.6]} 35. f4 {[%clk 0:00:06.7]} 35... Kf7 {[%clk 0:00:31.6]} 36. Kf2
{[%clk 0:00:07.6]} 36... Ke6 {[%clk 0:00:31.1]} 37. a7 {[%clk 0:00:08.2]} 37...
Bc6 {[%clk 0:00:30.4]} 38. Ke3 {[%clk 0:00:08.8]} 38... Bxg2 {[%clk 0:00:29.6]}
39. h4 {[%clk 0:00:09]} 39... Ba8 {[%clk 0:00:28.1]} 40. Kd4 {[%clk 0:00:09.5]}
40... Kd6 {[%clk 0:00:28]} 41. h5 {[%clk 0:00:09.4]} 41... g6 {[%clk 0:00:27]}
0-1

[Event "Late-Titled-Tuesday-Blitz-November-28-2023"]
[Site "Chess.com"]
[Date "2023.11.28"]
[Round "6"]
[White "The_Straightforward_Rook"]
[Black "Matthew_Clarke"]
[Result "0-1"]
[WhiteElo "2451"]
[BlackElo "2268"]
[TimeControl "180+1"]
[EndTime "15:04:51 PST"]
[Termination "Matthew_Clarke won by checkmate"]

1. e4 {[%clk 0:02:54.4]} 1... e5 {[%clk 0:02:49.6]} 2. Nf3 {[%clk 0:02:53.3]}
2... Nc6 {[%clk 0:02:49.6]} 3. Bc4 {[%clk 0:02:53.6]} 3... Bc5 {[%clk
0:02:49.1]} 4. d3 {[%clk 0:02:53.3]} 4... Nf6 {[%clk 0:02:47.9]} 5. Bg5 {[%clk
0:02:53.3]} 5... h6 {[%clk 0:02:42.1]} 6. Bh4 {[%clk 0:02:53.3]} 6... g5 {[%clk
0:02:42.1]} 7. Bg3 {[%clk 0:02:53.2]} 7... d6 {[%clk 0:02:42.4]} 8. c3 {[%clk
0:02:52.2]} 8... Bg4 {[%clk 0:02:29]} 9. Nbd2 {[%clk 0:02:48.2]} 9... Qe7 {[%clk
0:02:22.4]} 10. b4 {[%clk 0:02:44.1]} 10... Bb6 {[%clk 0:02:21.4]} 11. a4 {[%clk
0:02:43.8]} 11... a6 {[%clk 0:02:13]} 12. O-O {[%clk 0:02:42.5]} 12... O-O
{[%clk 0:01:58.4]} 13. Bb3 {[%clk 0:02:30.8]} 13... Nh5 {[%clk 0:01:44.3]} 14.
Kh1 {[%clk 0:02:21.9]} 14... Nf4 {[%clk 0:01:36.6]} 15. Nc4 {[%clk 0:02:19.7]}
15... Ba7 {[%clk 0:01:34.8]} 16. Ne3 {[%clk 0:02:18.5]} 16... Bh5 {[%clk
0:01:32]} 17. Nf5 {[%clk 0:02:17.3]} 17... Qf6 {[%clk 0:01:31.6]} 18. Qd2 {[%clk
0:02:02.9]} 18... Bg6 {[%clk 0:01:09.4]} 19. Nxh6+ {[%clk 0:01:50.7]} 19... Kg7
{[%clk 0:01:05.5]} 20. Ng4 {[%clk 0:01:50.3]} 20... Qe7 {[%clk 0:01:04.7]} 21.
b5 {[%clk 0:01:36.4]} 21... axb5 {[%clk 0:00:57.1]} 22. axb5 {[%clk 0:01:37.3]}
22... Nd8 {[%clk 0:00:56.9]} 23. b6 {[%clk 0:01:33.1]} 23... cxb6 {[%clk
0:00:56.8]} 24. Rfe1 {[%clk 0:01:20.6]} 24... Qd7 {[%clk 0:00:16.3]} 25. Ne3
{[%clk 0:01:08]} 25... f6 {[%clk 0:00:16.3]} 26. Bxf4 {[%clk 0:00:53.2]} 26...
gxf4 {[%clk 0:00:15.6]} 27. Nd5 {[%clk 0:00:53.5]} 27... Nc6 {[%clk 0:00:14.3]}
28. Nh4 {[%clk 0:00:39.7]} 28... Rh8 {[%clk 0:00:07.3]} 29. Nxg6 {[%clk
0:00:38.5]} 29... Kxg6 {[%clk 0:00:08.2]} 30. Qe2 {[%clk 0:00:31.1]} 30... Rh6
{[%clk 0:00:06.1]} 31. h3 {[%clk 0:00:26]} 31... Rxh3+ {[%clk 0:00:03.6]} 32.
gxh3 {[%clk 0:00:20.6]} 32... Qxh3+ {[%clk 0:00:04.5]} 33. Kg1 {[%clk
0:00:21.2]} 33... Rh8 {[%clk 0:00:05]} 34. f3 {[%clk 0:00:03.5]} 34... Qh1+
{[%clk 0:00:04.8]} 35. Kf2 {[%clk 0:00:04]} 35... Rh2# {[%clk 0:00:05.3]} 0-1

[Event "Late-Titled-Tuesday-Blitz-November-28-2023"]
[Site "Chess.com"]
[Date "2023.11.28"]
[Round "6"]
[White "DamianoLew95"]
[Black "bazar-wokzal"]
[Result "0-1"]
[WhiteElo "2740"]
[BlackElo "2644"]
[TimeControl "180+1"]
[EndTime "15:04:54 PST"]
[Termination "bazar-wokzal won by resignation"]

1. e4 {[%clk 0:03:00.9]} 1... Nc6 {[%clk 0:02:59.4]} 2. d4 {[%clk 0:02:56.7]}
2... d5 {[%clk 0:02:58.2]} 3. e5 {[%clk 0:02:57.3]} 3... h5 {[%clk 0:02:57.5]}
4. h4 {[%clk 0:02:51.5]} 4... Bg4 {[%clk 0:02:56.3]} 5. Ne2 {[%clk 0:02:49.1]}
5... Qd7 {[%clk 0:02:53.1]} 6. c3 {[%clk 0:02:45.2]} 6... f6 {[%clk 0:02:51]} 7.
f3 {[%clk 0:02:36.1]} 7... Bf5 {[%clk 0:02:45.7]} 8. Bf4 {[%clk 0:02:25]} 8...
fxe5 {[%clk 0:02:41.9]} 9. Bxe5 {[%clk 0:02:17.8]} 9... Nxe5 {[%clk 0:02:40.8]}
10. dxe5 {[%clk 0:02:18.7]} 10... e6 {[%clk 0:02:40.5]} 11. Nd4 {[%clk
0:02:14.2]} 11... Nh6 {[%clk 0:02:37.4]} 12. Nxf5 {[%clk 0:02:09.5]} 12... Nxf5
{[%clk 0:02:36.9]} 13. Bd3 {[%clk 0:02:08]} 13... g6 {[%clk 0:02:18.3]} 14. Bxf5
{[%clk 0:01:58.9]} 14... gxf5 {[%clk 0:02:18.1]} 15. Qe2 {[%clk 0:01:59]} 15...
O-O-O {[%clk 0:02:13]} 16. Nd2 {[%clk 0:01:57.6]} 16... Qa4 {[%clk 0:02:11.1]}
17. Nb3 {[%clk 0:01:42.6]} 17... c5 {[%clk 0:02:03]} 18. g3 {[%clk 0:01:26.2]}
18... Rg8 {[%clk 0:02:02.5]} 19. Rh3 {[%clk 0:01:22.9]} 19... Be7 {[%clk
0:01:57.1]} 20. f4 {[%clk 0:01:16.2]} 20... Rg4 {[%clk 0:01:51.8]} 21. O-O-O
{[%clk 0:00:52.7]} 21... Qxa2 {[%clk 0:01:48.1]} 22. Kc2 {[%clk 0:00:52.5]}
22... Qa4 {[%clk 0:01:17.4]} 23. Ra1 {[%clk 0:00:52.3]} 23... Qe4+ {[%clk
0:01:07.5]} 24. Qxe4 {[%clk 0:00:51.6]} 24... fxe4 {[%clk 0:01:04.4]} 25. Rxa7
{[%clk 0:00:51.2]} 25... Kb8 {[%clk 0:01:04.1]} 26. Ra5 {[%clk 0:00:43.1]} 26...
b6 {[%clk 0:01:03.6]} 27. Ra1 {[%clk 0:00:35.7]} 27... Rdg8 {[%clk 0:01:03.6]}
28. Rg1 {[%clk 0:00:35.2]} 28... Rxf4 {[%clk 0:01:01.6]} 29. gxf4 {[%clk
0:00:28.3]} 29... Rxg1 {[%clk 0:01:00.7]} 30. Nc1 {[%clk 0:00:25.6]} 30... Rg2+
{[%clk 0:00:58.3]} 31. Kb3 {[%clk 0:00:24.4]} 31... b5 {[%clk 0:00:55.1]} 32.
Ka2 {[%clk 0:00:23.2]} 32... c4 {[%clk 0:00:53.6]} 33. Kb1 {[%clk 0:00:21.4]}
33... Kc7 {[%clk 0:00:51.6]} 34. Na2 {[%clk 0:00:20.3]} 34... Kd7 {[%clk
0:00:51.2]} 35. Rh1 {[%clk 0:00:19.2]} 35... Rg4 {[%clk 0:00:47.1]} 36. Rf1
{[%clk 0:00:18.4]} 36... Bxh4 {[%clk 0:00:44.6]} 37. f5 {[%clk 0:00:18]} 37...
exf5 {[%clk 0:00:44.7]} 38. Rxf5 {[%clk 0:00:18.9]} 38... Ke6 {[%clk 0:00:45.1]}
39. Rxh5 {[%clk 0:00:18.7]} 39... Rg1+ {[%clk 0:00:39.3]} 40. Kc2 {[%clk
0:00:19.1]} 40... Bg5 {[%clk 0:00:39.2]} 41. Rh8 {[%clk 0:00:15.6]} 41... Kxe5
{[%clk 0:00:37.8]} 42. Re8+ {[%clk 0:00:13.6]} 42... Kf5 {[%clk 0:00:35.8]} 43.
Rf8+ {[%clk 0:00:12.2]} 43... Kg4 {[%clk 0:00:36.1]} 44. Rb8 {[%clk 0:00:13.1]}
44... e3 {[%clk 0:00:34.2]} 45. Re8 {[%clk 0:00:12.8]} 45... Kf3 {[%clk
0:00:33.8]} 46. Rf8+ {[%clk 0:00:12.6]} 46... Bf4 {[%clk 0:00:33.5]} 47. Nc1
{[%clk 0:00:11.7]} 47... Rxc1+ {[%clk 0:00:28.2]} 48. Kxc1 {[%clk 0:00:09.5]}
48... e2+ {[%clk 0:00:28.4]} 0-1

[Event "Late-Titled-Tuesday-Blitz-November-28-2023"]
[Site "Chess.com"]
[Date "2023.11.28"]
[Round "6"]
[White "Yurasova_Daria"]
[Black "FM_Kappeler"]
[Result "0-1"]
[WhiteElo "2469"]
[BlackElo "2337"]
[TimeControl "180+1"]
[EndTime "15:04:54 PST"]
[Termination "FM_Kappeler won on time"]

1. e4 {[%clk 0:03:00.9]} 1... c5 {[%clk 0:02:58]} 2. Nf3 {[%clk 0:02:58.4]} 2...
e6 {[%clk 0:02:58.3]} 3. d4 {[%clk 0:02:56]} 3... cxd4 {[%clk 0:02:58.8]} 4.
Nxd4 {[%clk 0:02:56.9]} 4... Nf6 {[%clk 0:02:58.6]} 5. Nc3 {[%clk 0:02:56.9]}
5... d6 {[%clk 0:02:59.2]} 6. g4 {[%clk 0:02:55.6]} 6... h6 {[%clk 0:02:58.1]}
7. Bg2 {[%clk 0:02:55.6]} 7... Nc6 {[%clk 0:02:51.8]} 8. h3 {[%clk 0:02:54.6]}
8... Bd7 {[%clk 0:02:50.8]} 9. Be3 {[%clk 0:02:53.1]} 9... Be7 {[%clk
0:02:49.6]} 10. O-O {[%clk 0:02:48.3]} 10... O-O {[%clk 0:02:49.4]} 11. f4
{[%clk 0:02:48.2]} 11... a6 {[%clk 0:02:40.9]} 12. Qf3 {[%clk 0:02:34.1]} 12...
Qc7 {[%clk 0:02:34.4]} 13. Rad1 {[%clk 0:02:31.5]} 13... Rac8 {[%clk 0:02:29.8]}
14. Qg3 {[%clk 0:02:20.2]} 14... b5 {[%clk 0:02:15.1]} 15. a3 {[%clk 0:02:14.9]}
15... b4 {[%clk 0:02:13]} 16. axb4 {[%clk 0:02:11.7]} 16... Nxb4 {[%clk
0:02:12.3]} 17. Bf3 {[%clk 0:01:46.8]} 17... e5 {[%clk 0:02:07.9]} 18. fxe5
{[%clk 0:01:34.1]} 18... dxe5 {[%clk 0:02:05.5]} 19. Nf5 {[%clk 0:01:34.2]}
19... Bc5 {[%clk 0:01:50.6]} 20. Bxc5 {[%clk 0:01:24.1]} 20... Qxc5+ {[%clk
0:01:49.9]} 21. Kh1 {[%clk 0:01:20.3]} 21... Bxf5 {[%clk 0:01:49.3]} 22. gxf5
{[%clk 0:01:20]} 22... Nxc2 {[%clk 0:01:48.5]} 23. Rg1 {[%clk 0:01:17.1]} 23...
Ne8 {[%clk 0:01:36.2]} 24. f6 {[%clk 0:01:01.8]} 24... g6 {[%clk 0:01:35.3]} 25.
Nd5 {[%clk 0:00:56.3]} 25... Kh7 {[%clk 0:00:54.7]} 26. Ne7 {[%clk 0:00:56]}
26... Nxf6 {[%clk 0:00:53.7]} 27. Nxc8 {[%clk 0:00:27.7]} 27... Rxc8 {[%clk
0:00:52.8]} 28. Rc1 {[%clk 0:00:22.7]} 28... Qe3 {[%clk 0:00:38.4]} 29. Qg2
{[%clk 0:00:18.9]} 29... Rc4 {[%clk 0:00:28.7]} 30. Qe2 {[%clk 0:00:11.3]} 30...
Qf4 {[%clk 0:00:19.4]} 31. Qxc4 {[%clk 0:00:06.1]} 31... Qxf3+ {[%clk
0:00:19.7]} 32. Rg2 {[%clk 0:00:06.6]} 32... Ne3 {[%clk 0:00:17.8]} 33. Qe2
{[%clk 0:00:05.1]} 33... Qxh3+ {[%clk 0:00:16.7]} 34. Kg1 {[%clk 0:00:03.6]}
34... Nxg2 {[%clk 0:00:16.8]} 35. Rc7 {[%clk 0:00:03.2]} 35... Nf4 {[%clk
0:00:14.1]} 36. Rxf7+ {[%clk 0:00:02.7]} 36... Kg8 {[%clk 0:00:13.6]} 0-1

[Event "Late-Titled-Tuesday-Blitz-November-28-2023"]
[Site "Chess.com"]
[Date "2023.11.28"]
[Round "6"]
[White "kingofthenil"]
[Black "Actuary44"]
[Result "1-0"]
[WhiteElo "2693"]
[BlackElo "2462"]
[TimeControl "180+1"]
[EndTime "15:05:01 PST"]
[Termination "kingofthenil won on time"]

1. e4 {[%clk 0:02:55]} 1... c5 {[%clk 0:02:59.7]} 2. d3 {[%clk 0:02:54.6]} 2...
e5 {[%clk 0:02:57.5]} 3. g3 {[%clk 0:02:55.5]} 3... d6 {[%clk 0:02:57.6]} 4. Bg2
{[%clk 0:02:55.8]} 4... f5 {[%clk 0:02:58.2]} 5. f4 {[%clk 0:02:55.1]} 5... fxe4
{[%clk 0:02:57.8]} 6. dxe4 {[%clk 0:02:54.6]} 6... exf4 {[%clk 0:02:56.1]} 7.
Bxf4 {[%clk 0:02:54.5]} 7... Nc6 {[%clk 0:02:52.9]} 8. Nc3 {[%clk 0:02:54.5]}
8... Nf6 {[%clk 0:02:52.6]} 9. Qd2 {[%clk 0:02:52.8]} 9... Be7 {[%clk
0:02:51.8]} 10. Nb5 {[%clk 0:02:52.7]} 10... O-O {[%clk 0:02:49]} 11. Nxd6
{[%clk 0:02:50.9]} 11... Be6 {[%clk 0:02:36.7]} 12. O-O-O {[%clk 0:02:43.6]}
12... Nd4 {[%clk 0:02:25.9]} 13. e5 {[%clk 0:01:40.6]} 13... Nd5 {[%clk
0:02:25.3]} 14. c3 {[%clk 0:01:38.9]} 14... Qa5 {[%clk 0:01:16.6]} 15. Kb1
{[%clk 0:01:31.4]} 15... Bxd6 {[%clk 0:01:06.9]} 16. cxd4 {[%clk 0:01:24.7]}
16... Bf5+ {[%clk 0:01:03.8]} 17. Ka1 {[%clk 0:01:23.5]} 17... Nb4 {[%clk
0:01:03.1]} 18. b3 {[%clk 0:01:23.3]} 18... Bc2 {[%clk 0:00:52.7]} 19. a4 {[%clk
0:01:17.4]} 19... Bxb3 {[%clk 0:00:48.3]} 20. Kb2 {[%clk 0:00:58]} 20... Bxd1
{[%clk 0:00:45.3]} 21. Qxd1 {[%clk 0:00:52.9]} 21... Bc7 {[%clk 0:00:40.6]} 22.
d5 {[%clk 0:00:52.9]} 22... c4 {[%clk 0:00:40.2]} 23. d6 {[%clk 0:00:52.9]}
23... Nd3+ {[%clk 0:00:40.2]} 24. Ka2 {[%clk 0:00:52.4]} 24... Qb4 {[%clk
0:00:32.1]} 25. Qc2 {[%clk 0:00:52.4]} 25... Bb6 {[%clk 0:00:27.6]} 26. Ne2
{[%clk 0:00:50.5]} 26... Kh8 {[%clk 0:00:22.4]} 27. Rb1 {[%clk 0:00:51]} 27...
Qa5 {[%clk 0:00:21.2]} 28. Qxc4 {[%clk 0:00:51.5]} 28... Nc5 {[%clk 0:00:17.9]}
29. Rb5 {[%clk 0:00:50]} 29... Qe1 {[%clk 0:00:17.2]} 30. a5 {[%clk 0:00:40.3]}
30... Rac8 {[%clk 0:00:13.6]} 31. Bh3 {[%clk 0:00:21]} 31... Ne6 {[%clk
0:00:08.8]} 32. Qd3 {[%clk 0:00:21.6]} 32... Nxf4 {[%clk 0:00:07.7]} 33. gxf4
{[%clk 0:00:21.1]} 33... Rc5 {[%clk 0:00:07.5]} 34. axb6 {[%clk 0:00:19.8]}
34... Rxb5 {[%clk 0:00:07.6]} 35. Qxb5 {[%clk 0:00:20.7]} 35... Qd2+ {[%clk
0:00:07.9]} 36. Qb2 {[%clk 0:00:20.3]} 36... Qd5+ {[%clk 0:00:07.5]} 37. Qb3
{[%clk 0:00:20.3]} 37... Qd2+ {[%clk 0:00:07.4]} 38. Qb2 {[%clk 0:00:19.6]}
38... Qd5+ {[%clk 0:00:07.4]} 39. Kb1 {[%clk 0:00:19.7]} 39... Qd1+ {[%clk
0:00:07.6]} 40. Nc1 {[%clk 0:00:19.1]} 40... axb6 {[%clk 0:00:07.4]} 41. d7
{[%clk 0:00:17.7]} 41... Qf3 {[%clk 0:00:05.8]} 42. e6 {[%clk 0:00:16.1]} 42...
Qxh3 {[%clk 0:00:05.3]} 43. e7 {[%clk 0:00:16.3]} 43... Qf5+ {[%clk 0:00:03.7]}
44. Qc2 {[%clk 0:00:16.6]} 44... Qxc2+ {[%clk 0:00:01.4]} 45. Kxc2 {[%clk
0:00:16.4]} 45... Kg8 {[%clk 0:00:01.8]} 46. e8=Q {[%clk 0:00:16.4]} 1-0